[Event "Titled Tuesday Blitz June 13 Early 2023"]
[White "Starozhilov, Leonid"]
[Black "Budrewicz, Krzysztof"]
[WhiteFideId "14106752"]
[BlackFideId "1127950"]
[WhiteElo "2352"]
[BlackElo "2230"]
[Result "1/2-1/2"]
[Round "7"]
[TimeControl "180+2"]
[Date "2023.06.13"]
[WhiteClock "0:00:04"]
[BlackClock "0:00:22"]
[Board "50"]

1. e4 {[%clk 0:03:00]}  g6 {[%clk 0:02:59]} 2. d4 {[%clk 0:03:00]}  Bg7 {[%clk 0:03:00]} 3. c4 {[%clk 0:02:59]}  d6 {[%clk 0:02:59]} 4. Nc3 {[%clk 0:03:00]}  Nf6 {[%clk 0:02:57]} 5. h3 {[%clk 0:03:00]}  O-O {[%clk 0:02:57]} 6. Be3 {[%clk 0:03:00]}  Nbd7 {[%clk 0:02:56]} 7. g4 {[%clk 0:02:58]}  e5 {[%clk 0:02:56]} 8. d5 {[%clk 0:02:58]}  Nc5 {[%clk 0:02:56]} 9. f3 {[%clk 0:02:58]}  a5 {[%clk 0:02:56]} 10. Nge2 {[%clk 0:02:51]}  c6 {[%clk 0:02:55]} 11. Ng3 {[%clk 0:02:48]}  cxd5 {[%clk 0:02:55]} 12. cxd5 {[%clk 0:02:49]}  h5 {[%clk 0:02:53]} 13. gxh5 {[%clk 0:02:32]}  Nxh5 {[%clk 0:02:53]} 14. Nxh5 {[%clk 0:02:10]}  Qh4+ {[%clk 0:02:53]} 15. Kd2 {[%clk 0:01:31]}  Qxh5 {[%clk 0:02:52]} 16. Be2 {[%clk 0:01:29]}  Qh4 {[%clk 0:02:42]} 17. Qe1 {[%clk 0:01:24]}  Qd8 {[%clk 0:02:29]} 18. h4 {[%clk 0:01:23]}  f5 {[%clk 0:02:29]} 19. Qg1 {[%clk 0:01:11]}  Rf6 {[%clk 0:02:08]} 20. h5 {[%clk 0:00:54]}  f4 {[%clk 0:02:06]} 21. Bxc5 {[%clk 0:00:52]}  dxc5 {[%clk 0:02:06]} 22. hxg6 {[%clk 0:00:48]}  Qb6 {[%clk 0:02:01]} 23. Kc2 {[%clk 0:00:46]}  Bd7 {[%clk 0:01:57]} 24. Qh2 {[%clk 0:00:44]}  Rxg6 {[%clk 0:01:45]} 25. Bc4 {[%clk 0:00:38]}  Qb4 {[%clk 0:01:36]} 26. Qh7+ {[%clk 0:00:31]}  Kf7 {[%clk 0:01:36]} 27. Rag1 {[%clk 0:00:31]}  Rg3 {[%clk 0:01:27]} 28. b3 {[%clk 0:00:23]}  Rh8 {[%clk 0:01:08]} 29. d6+ {[%clk 0:00:16]}  Qxc4 {[%clk 0:00:59]} 30. Qxh8 {[%clk 0:00:06]}  Qxc3+ {[%clk 0:00:46]} 31. Kxc3 {[%clk 0:00:06]}  Bxh8 {[%clk 0:00:46]} 32. Rh7+ {[%clk 0:00:04]}  Bg7 {[%clk 0:00:45]} 33. Rf1 {[%clk 0:00:03]}  b5 {[%clk 0:00:43]} 34. a4 {[%clk 0:00:03]}  bxa4 {[%clk 0:00:42]} 35. bxa4 {[%clk 0:00:04]}  Be6 {[%clk 0:00:42]} 36. Rb1 {[%clk 0:00:03]}  Rxf3+ {[%clk 0:00:42]} 37. Kd2 {[%clk 0:00:04]}  c4 {[%clk 0:00:42]} 38. Rb7+ {[%clk 0:00:03]}  Kf6 {[%clk 0:00:42]} 39. Rhxg7 {[%clk 0:00:02]}  Rd3+ {[%clk 0:00:42]} 40. Kc2 {[%clk 0:00:03]}  Rxd6 {[%clk 0:00:43]} 41. Rh7 {[%clk 0:00:03]}  f3 {[%clk 0:00:40]} 42. Rb8 {[%clk 0:00:04]}  Rd7 {[%clk 0:00:38]} 43. Rf8+ {[%clk 0:00:03]}  Bf7 {[%clk 0:00:36]} 44. Rh3 {[%clk 0:00:03]}  Ke7 {[%clk 0:00:34]} 45. Rxf7+ {[%clk 0:00:02]}  Kxf7 {[%clk 0:00:34]} 46. Rxf3+ {[%clk 0:00:03]}  Ke6 {[%clk 0:00:34]} 47. Rf8 {[%clk 0:00:02]}  Rd4 {[%clk 0:00:32]} 48. Ra8 {[%clk 0:00:02]}  Rxe4 {[%clk 0:00:33]} 49. Kc3 {[%clk 0:00:01]}  Re1 {[%clk 0:00:25]} 50. Rxa5 {[%clk 0:00:02]}  Rc1+ {[%clk 0:00:25]} 51. Kd2 {[%clk 0:00:02]}  Ra1 {[%clk 0:00:25]} 52. Kc3 {[%clk 0:00:03]}  Kf5 {[%clk 0:00:20]} 53. Kxc4 {[%clk 0:00:03]}  Kf4 {[%clk 0:00:21]} 54. Ra8 {[%clk 0:00:04]}  e4 {[%clk 0:00:21]} 55. a5 {[%clk 0:00:04]}  e3 {[%clk 0:00:22]} 56. Rf8+ {[%clk 0:00:04]}  Kg3 {[%clk 0:00:22]} 57. Rg8+ {[%clk 0:00:04]}  Kf2 {[%clk 0:00:22]} 58. Rf8+ {[%clk 0:00:05]}  Ke1 {[%clk 0:00:23]} 59. Kb5 {[%clk 0:00:05]}  e2 {[%clk 0:00:23]} 60. Re8 {[%clk 0:00:04]}  Kd2 {[%clk 0:00:23]} 61. a6 {[%clk 0:00:04]}  Rb1+ {[%clk 0:00:21]} 62. Kc6 {[%clk 0:00:04]}  Rc1+ {[%clk 0:00:22]} 63. Kb6 {[%clk 0:00:03]}  Rc3 {[%clk 0:00:21]} 64. Rxe2+ {[%clk 0:00:02]}  Kxe2 {[%clk 0:00:21]} 65. a7 {[%clk 0:00:03]}  Rb3+ {[%clk 0:00:22]} 66. Kc7 {[%clk 0:00:03]}  Ra3 {[%clk 0:00:22]} 67. Kb7 {[%clk 0:00:04]}  Rxa7+ {[%clk 0:00:22]} 68. Kxa7 {[%clk 0:00:04]} 1/2-1/2


[Site "https://www.chess.com"]

[Event "Titled Tuesday Blitz June 13 Early 2023"]
[White "Djordjevic, Vuk"]
[Black "Chos, Alexey"]
[WhiteFideId "902098"]
[BlackFideId "14117762"]
[WhiteElo "2463"]
[BlackElo "2234"]
[Result "1-0"]
[Round "7"]
[TimeControl "180+2"]
[Date "2023.06.13"]
[WhiteClock "0:00:17"]
[BlackClock "0:00:07"]
[Board "52"]

1. d4 {[%clk 0:03:00]}  Nf6 {[%clk 0:02:58]} 2. Bg5 {[%clk 0:03:01]}  g6 {[%clk 0:02:59]} 3. Bxf6 {[%clk 0:03:01]}  exf6 {[%clk 0:02:56]} 4. c4 {[%clk 0:03:01]}  Bg7 {[%clk 0:02:57]} 5. Nc3 {[%clk 0:03:01]}  O-O {[%clk 0:02:58]} 6. e3 {[%clk 0:03:01]}  f5 {[%clk 0:02:56]} 7. g3 {[%clk 0:03:01]}  c5 {[%clk 0:02:53]} 8. Nge2 {[%clk 0:02:53]}  Nc6 {[%clk 0:02:47]} 9. Qd2 {[%clk 0:02:50]}  Bh6 {[%clk 0:02:34]} 10. dxc5 {[%clk 0:02:38]}  Ne5 {[%clk 0:02:31]} 11. Qd5 {[%clk 0:02:28]}  d6 {[%clk 0:02:25]} 12. cxd6 {[%clk 0:02:22]}  Re8 {[%clk 0:02:16]} 13. Nd4 {[%clk 0:02:06]}  Bg7 {[%clk 0:01:58]} 14. Rd1 {[%clk 0:01:47]}  Bd7 {[%clk 0:01:48]} 15. Bg2 {[%clk 0:01:31]}  Qb6 {[%clk 0:01:38]} 16. Qxb7 {[%clk 0:01:07]}  Qxb7 {[%clk 0:01:21]} 17. Bxb7 {[%clk 0:01:06]}  Rab8 {[%clk 0:01:21]} 18. Ba6 {[%clk 0:01:00]}  Rxb2 {[%clk 0:01:15]} 19. O-O {[%clk 0:01:00]}  Ng4 {[%clk 0:01:05]} 20. Bb5 {[%clk 0:00:46]}  Ne5 {[%clk 0:00:55]} 21. c5 {[%clk 0:00:40]}  Bxb5 {[%clk 0:00:38]} 22. Ncxb5 {[%clk 0:00:23]}  Rc2 {[%clk 0:00:32]} 23. Nxc2 {[%clk 0:00:21]}  a6 {[%clk 0:00:29]} 24. Nc7 {[%clk 0:00:18]}  Rb8 {[%clk 0:00:26]} 25. Nxa6 {[%clk 0:00:18]}  Ra8 {[%clk 0:00:23]} 26. Ncb4 {[%clk 0:00:15]}  Bf6 {[%clk 0:00:16]} 27. Rd5 {[%clk 0:00:15]}  Kf8 {[%clk 0:00:12]} 28. Rfd1 {[%clk 0:00:16]}  Ke8 {[%clk 0:00:12]} 29. d7+ {[%clk 0:00:16]}  Kd8 {[%clk 0:00:08]} 30. Rxe5 {[%clk 0:00:16]}  Bxe5 {[%clk 0:00:07]} 31. Nc6# {[%clk 0:00:17]} 1-0


[Site "https://www.chess.com"]

[Event "Titled Tuesday Blitz June 13 Early 2023"]
[White "Safin, Robert"]
[Black "Quintiliano Pinto, Renato R."]
[WhiteFideId "34189120"]
[BlackFideId "2117568"]
[WhiteElo "2341"]
[BlackElo "2459"]
[Result "1/2-1/2"]
[Round "7"]
[TimeControl "180+2"]
[Date "2023.06.13"]
[WhiteClock "0:00:02"]
[BlackClock "0:00:09"]
[Board "53"]

1. e4 {[%clk 0:03:00]}  c5 {[%clk 0:02:58]} 2. c3 {[%clk 0:03:00]}  Nf6 {[%clk 0:02:56]} 3. e5 {[%clk 0:03:01]}  Nd5 {[%clk 0:02:56]} 4. Nf3 {[%clk 0:03:01]}  e6 {[%clk 0:02:55]} 5. d4 {[%clk 0:02:59]}  cxd4 {[%clk 0:02:55]} 6. cxd4 {[%clk 0:03:00]}  d6 {[%clk 0:02:55]} 7. Bc4 {[%clk 0:03:01]}  Nc6 {[%clk 0:02:53]} 8. O-O {[%clk 0:02:58]}  Be7 {[%clk 0:02:52]} 9. Bxd5 {[%clk 0:02:58]}  exd5 {[%clk 0:02:51]} 10. Nc3 {[%clk 0:02:59]}  Be6 {[%clk 0:02:49]} 11. Bf4 {[%clk 0:02:59]}  O-O {[%clk 0:02:48]} 12. exd6 {[%clk 0:02:59]}  Bxd6 {[%clk 0:02:47]} 13. Bxd6 {[%clk 0:03:00]}  Qxd6 {[%clk 0:02:47]} 14. Re1 {[%clk 0:02:49]}  Rfe8 {[%clk 0:02:42]} 15. Ne5 {[%clk 0:02:41]}  Nxe5 {[%clk 0:02:27]} 16. Rxe5 {[%clk 0:02:39]}  f6 {[%clk 0:02:27]} 17. Re1 {[%clk 0:02:24]}  Bf7 {[%clk 0:02:24]} 18. Qd2 {[%clk 0:02:24]}  h6 {[%clk 0:02:16]} 19. Rxe8+ {[%clk 0:02:22]}  Rxe8 {[%clk 0:02:17]} 20. Re1 {[%clk 0:02:23]}  Rc8 {[%clk 0:02:09]} 21. h3 {[%clk 0:02:16]}  Rc4 {[%clk 0:02:00]} 22. b3 {[%clk 0:02:09]}  Rc8 {[%clk 0:01:59]} 23. Rc1 {[%clk 0:02:01]}  Qb4 {[%clk 0:01:53]} 24. Rc2 {[%clk 0:01:36]}  a5 {[%clk 0:01:20]} 25. Ne2 {[%clk 0:00:59]}  Qxd2 {[%clk 0:01:08]} 26. Rxd2 {[%clk 0:01:00]}  g5 {[%clk 0:01:08]} 27. Kf1 {[%clk 0:00:51]}  b5 {[%clk 0:01:06]} 28. Ke1 {[%clk 0:00:42]}  Bg6 {[%clk 0:01:03]} 29. Kd1 {[%clk 0:00:40]}  b4 {[%clk 0:01:03]} 30. Nc1 {[%clk 0:00:34]}  Rc3 {[%clk 0:00:58]} 31. Ne2 {[%clk 0:00:31]}  Rc6 {[%clk 0:00:48]} 32. Nc1 {[%clk 0:00:31]}  Rc3 {[%clk 0:00:16]} 33. Ne2 {[%clk 0:00:31]}  Rc7 {[%clk 0:00:15]} 34. Nc1 {[%clk 0:00:30]}  Be4 {[%clk 0:00:12]} 35. f3 {[%clk 0:00:29]}  Bg6 {[%clk 0:00:12]} 36. Nd3 {[%clk 0:00:27]}  Bxd3 {[%clk 0:00:13]} 37. Rxd3 {[%clk 0:00:27]}  Kf7 {[%clk 0:00:14]} 38. Re3 {[%clk 0:00:23]}  h5 {[%clk 0:00:13]} 39. Kd2 {[%clk 0:00:21]}  h4 {[%clk 0:00:14]} 40. f4 {[%clk 0:00:15]}  gxf4 {[%clk 0:00:10]} 41. Rf3 {[%clk 0:00:15]}  Ke6 {[%clk 0:00:08]} 42. Rxf4 {[%clk 0:00:15]}  Rg7 {[%clk 0:00:09]} 43. Rf2 {[%clk 0:00:13]}  Rg3 {[%clk 0:00:09]} 44. Ke2 {[%clk 0:00:08]}  f5 {[%clk 0:00:08]} 45. Kd2 {[%clk 0:00:06]}  Kf6 {[%clk 0:00:08]} 46. Ke2 {[%clk 0:00:06]}  Kg5 {[%clk 0:00:09]} 47. Kd2 {[%clk 0:00:05]}  f4 {[%clk 0:00:09]} 48. Ke2 {[%clk 0:00:04]}  Re3+ {[%clk 0:00:09]} 49. Kd2 {[%clk 0:00:04]}  Rg3 {[%clk 0:00:08]} 50. Re2 {[%clk 0:00:02]}  Kf6 {[%clk 0:00:08]} 51. Rf2 {[%clk 0:00:01]}  Kf5 {[%clk 0:00:08]} 52. Re2 {[%clk 0:00:02]}  Kf6 {[%clk 0:00:08]} 53. Rf2 {[%clk 0:00:02]}  Kg5 {[%clk 0:00:09]} 1/2-1/2


[Site "https://www.chess.com"]

[Event "Titled Tuesday Blitz June 13 Early 2023"]
[White "Ginzburg, Yakov"]
[Black "Martinez Ramirez, Lennis"]
[WhiteFideId "4157176"]
[BlackFideId "3509079"]
[WhiteElo "2305"]
[BlackElo "2410"]
[Result "0-1"]
[Round "7"]
[TimeControl "180+2"]
[Date "2023.06.13"]
[WhiteClock "0:00:01"]
[BlackClock "0:00:55"]
[Board "55"]

1. d4 {[%clk 0:02:59]}  Nf6 {[%clk 0:02:59]} 2. Nf3 {[%clk 0:02:59]}  e6 {[%clk 0:02:59]} 3. g3 {[%clk 0:03:00]}  b6 {[%clk 0:02:59]} 4. Bg2 {[%clk 0:03:00]}  Bb7 {[%clk 0:02:59]} 5. O-O {[%clk 0:03:00]}  Be7 {[%clk 0:02:59]} 6. c4 {[%clk 0:03:00]}  O-O {[%clk 0:02:59]} 7. Nc3 {[%clk 0:03:00]}  Ne4 {[%clk 0:03:00]} 8. Qc2 {[%clk 0:02:53]}  Nxc3 {[%clk 0:02:56]} 9. Qxc3 {[%clk 0:02:09]}  Be4 {[%clk 0:02:55]} 10. Ne1 {[%clk 0:02:05]}  Bxg2 {[%clk 0:02:54]} 11. Nxg2 {[%clk 0:02:06]}  Bf6 {[%clk 0:02:52]} 12. e4 {[%clk 0:02:05]}  c5 {[%clk 0:02:52]} 13. e5 {[%clk 0:02:05]}  Be7 {[%clk 0:02:09]} 14. d5 {[%clk 0:02:04]}  d6 {[%clk 0:02:09]} 15. dxe6 {[%clk 0:01:57]}  Nc6 {[%clk 0:02:05]} 16. Nf4 {[%clk 0:01:16]}  dxe5 {[%clk 0:01:58]} 17. exf7+ {[%clk 0:01:11]}  Rxf7 {[%clk 0:01:59]} 18. Nd5 {[%clk 0:01:08]}  Nd4 {[%clk 0:01:59]} 19. Qd3 {[%clk 0:01:04]}  Bg5 {[%clk 0:01:40]} 20. Qe4 {[%clk 0:00:59]}  Bxc1 {[%clk 0:01:36]} 21. Raxc1 {[%clk 0:00:59]}  Nf3+ {[%clk 0:01:29]} 22. Kg2 {[%clk 0:00:59]}  Nd2 {[%clk 0:01:30]} 23. Qxe5 {[%clk 0:00:55]}  Qf8 {[%clk 0:01:26]} 24. f4 {[%clk 0:00:08]}  Re8 {[%clk 0:01:24]} 25. Qc3 {[%clk 0:00:07]}  Nxf1 {[%clk 0:01:22]} 26. Rxf1 {[%clk 0:00:07]}  Re2+ {[%clk 0:01:21]} 27. Rf2 {[%clk 0:00:08]}  Qe8 {[%clk 0:01:21]} 28. Qf3 {[%clk 0:00:07]}  Re1 {[%clk 0:01:16]} 29. h4 {[%clk 0:00:07]}  h6 {[%clk 0:01:16]} 30. h5 {[%clk 0:00:07]}  Qe6 {[%clk 0:01:14]} 31. g4 {[%clk 0:00:06]}  b5 {[%clk 0:01:02]} 32. b3 {[%clk 0:00:06]}  bxc4 {[%clk 0:01:02]} 33. bxc4 {[%clk 0:00:06]}  Rb7 {[%clk 0:01:01]} 34. Nf6+ {[%clk 0:00:05]}  gxf6 {[%clk 0:00:59]} 35. Qxb7 {[%clk 0:00:04]}  Qxg4+ {[%clk 0:01:00]} 36. Kh2 {[%clk 0:00:05]}  Qh4+ {[%clk 0:00:56]} 37. Kg2 {[%clk 0:00:04]}  Qh1+ {[%clk 0:00:56]} 38. Kg3 {[%clk 0:00:01]}  Qxb7 {[%clk 0:00:55]} 0-1


[Site "https://www.chess.com"]

[Event "Titled Tuesday Blitz June 13 Early 2023"]
[White "Akylbek2021"]
[Black "Pulpan, Jakub"]
[BlackFideId "302759"]
[WhiteElo "2517"]
[BlackElo "2484"]
[Result "0-1"]
[Round "7"]
[TimeControl "180+2"]
[Date "2023.06.13"]
[WhiteClock "0:00:18"]
[BlackClock "0:00:05"]
[Board "57"]

1. e4 {[%clk 0:03:00]}  e5 {[%clk 0:02:50]} 2. Nf3 {[%clk 0:03:00]}  Nc6 {[%clk 0:02:41]} 3. d4 {[%clk 0:02:57]}  exd4 {[%clk 0:02:30]} 4. Nxd4 {[%clk 0:02:58]}  Bb4+ {[%clk 0:02:31]} 5. Nc3 {[%clk 0:02:52]}  Bxc3+ {[%clk 0:02:16]} 6. bxc3 {[%clk 0:02:53]}  Nf6 {[%clk 0:02:17]} 7. Nxc6 {[%clk 0:02:45]}  bxc6 {[%clk 0:02:17]} 8. Bd3 {[%clk 0:02:44]}  d5 {[%clk 0:02:16]} 9. exd5 {[%clk 0:02:44]}  O-O {[%clk 0:02:15]} 10. O-O {[%clk 0:02:43]}  cxd5 {[%clk 0:02:14]} 11. h3 {[%clk 0:02:38]}  h6 {[%clk 0:01:57]} 12. Be3 {[%clk 0:02:24]}  Be6 {[%clk 0:01:52]} 13. Rb1 {[%clk 0:02:21]}  Qd6 {[%clk 0:01:48]} 14. Qd2 {[%clk 0:01:55]}  Ne4 {[%clk 0:01:25]} 15. Bxe4 {[%clk 0:01:40]}  dxe4 {[%clk 0:01:25]} 16. Qxd6 {[%clk 0:01:26]}  cxd6 {[%clk 0:01:26]} 17. Rfd1 {[%clk 0:01:27]}  Bxa2 {[%clk 0:01:19]} 18. Ra1 {[%clk 0:01:24]}  Be6 {[%clk 0:01:19]} 19. Rxd6 {[%clk 0:01:15]}  a5 {[%clk 0:01:14]} 20. c4 {[%clk 0:01:15]}  a4 {[%clk 0:01:08]} 21. Rc6 {[%clk 0:01:11]}  Rfb8 {[%clk 0:00:52]} 22. Ra3 {[%clk 0:01:07]}  Rb4 {[%clk 0:00:51]} 23. c5 {[%clk 0:00:53]}  Rc4 {[%clk 0:00:50]} 24. c3 {[%clk 0:00:47]}  Bd7 {[%clk 0:00:43]} 25. Rb6 {[%clk 0:00:44]}  Rc8 {[%clk 0:00:32]} 26. Bd4 {[%clk 0:00:43]}  R8xc5 {[%clk 0:00:22]} 27. Bxc5 {[%clk 0:00:43]}  Rxc5 {[%clk 0:00:23]} 28. Rb4 {[%clk 0:00:43]}  f5 {[%clk 0:00:21]} 29. Rd4 {[%clk 0:00:41]}  Be8 {[%clk 0:00:16]} 30. g4 {[%clk 0:00:38]}  g6 {[%clk 0:00:16]} 31. gxf5 {[%clk 0:00:36]}  gxf5 {[%clk 0:00:17]} 32. Kh2 {[%clk 0:00:37]}  Kf7 {[%clk 0:00:17]} 33. Kg3 {[%clk 0:00:37]}  Ke6 {[%clk 0:00:17]} 34. Kf4 {[%clk 0:00:38]}  Rc7 {[%clk 0:00:13]} 35. Rb4 {[%clk 0:00:32]}  Kd5 {[%clk 0:00:04]} 36. Rb5+ {[%clk 0:00:20]}  Bxb5 {[%clk 0:00:03]} 37. c4+ {[%clk 0:00:20]}  Kxc4 {[%clk 0:00:03]} 38. Kxf5 {[%clk 0:00:20]}  Kb4 {[%clk 0:00:04]} 39. Ra1 {[%clk 0:00:21]}  Bd3 {[%clk 0:00:04]} 40. Kf4 {[%clk 0:00:20]}  Rc2 {[%clk 0:00:04]} 41. Ke3 {[%clk 0:00:21]}  Re2+ {[%clk 0:00:04]} 42. Kd4 {[%clk 0:00:18]}  Rxf2 {[%clk 0:00:05]} 0-1


[Site "https://www.chess.com"]

[Event "Titled Tuesday Blitz June 13 Early 2023"]
[White "Skvortsov, Andrei"]
[Black "Jovic, Stanoje"]
[WhiteFideId "24108600"]
[BlackFideId "905020"]
[WhiteElo "2259"]
[BlackElo "2236"]
[Result "0-1"]
[Round "7"]
[TimeControl "180+2"]
[Date "2023.06.13"]
[WhiteClock "0:00:00"]
[BlackClock "0:00:05"]
[Board "58"]

1. e4 {[%clk 0:03:00]}  c6 {[%clk 0:02:59]} 2. e5 {[%clk 0:02:54]}  d5 {[%clk 0:02:58]} 3. exd6 {[%clk 0:02:55]}  e5 {[%clk 0:02:58]} 4. d4 {[%clk 0:02:54]}  e4 {[%clk 0:02:54]} 5. Nc3 {[%clk 0:02:52]}  Nf6 {[%clk 0:02:53]} 6. Bg5 {[%clk 0:02:49]}  Bf5 {[%clk 0:02:49]} 7. Qe2 {[%clk 0:02:39]}  Bxd6 {[%clk 0:02:12]} 8. f3 {[%clk 0:02:14]}  Bb4 {[%clk 0:01:51]} 9. fxe4 {[%clk 0:02:09]}  O-O {[%clk 0:01:29]} 10. O-O-O {[%clk 0:01:40]}  Bg4 {[%clk 0:01:21]} 11. Nf3 {[%clk 0:01:30]}  Bxc3 {[%clk 0:01:15]} 12. bxc3 {[%clk 0:01:30]}  Qa5 {[%clk 0:01:15]} 13. Bxf6 {[%clk 0:01:29]}  gxf6 {[%clk 0:01:11]} 14. Qc4 {[%clk 0:01:29]}  Be6 {[%clk 0:01:06]} 15. d5 {[%clk 0:01:25]}  cxd5 {[%clk 0:01:05]} 16. exd5 {[%clk 0:01:25]}  Rc8 {[%clk 0:01:03]} 17. Qb4 {[%clk 0:01:19]}  Qxb4 {[%clk 0:00:50]} 18. cxb4 {[%clk 0:01:19]}  Bf5 {[%clk 0:00:49]} 19. Nd4 {[%clk 0:01:19]}  Bg6 {[%clk 0:00:48]} 20. h4 {[%clk 0:01:15]}  h5 {[%clk 0:00:47]} 21. Bd3 {[%clk 0:01:14]}  Nd7 {[%clk 0:00:44]} 22. Bxg6 {[%clk 0:01:10]}  fxg6 {[%clk 0:00:44]} 23. Rhf1 {[%clk 0:01:01]}  Rc4 {[%clk 0:00:41]} 24. a3 {[%clk 0:01:00]}  a5 {[%clk 0:00:37]} 25. b5 {[%clk 0:00:56]}  a4 {[%clk 0:00:29]} 26. Rfe1 {[%clk 0:00:46]}  Rac8 {[%clk 0:00:27]} 27. Re7 {[%clk 0:00:44]}  Nc5 {[%clk 0:00:20]} 28. Kb2 {[%clk 0:00:43]}  b6 {[%clk 0:00:16]} 29. g3 {[%clk 0:00:36]}  Kf8 {[%clk 0:00:13]} 30. Re3 {[%clk 0:00:32]}  Nd7 {[%clk 0:00:12]} 31. Nc6 {[%clk 0:00:32]}  Ne5 {[%clk 0:00:10]} 32. Rc3 {[%clk 0:00:32]}  Rg4 {[%clk 0:00:08]} 33. Nxe5 {[%clk 0:00:32]}  Rxc3 {[%clk 0:00:06]} 34. Nxg4 {[%clk 0:00:31]}  Rf3 {[%clk 0:00:05]} 35. Nh2 {[%clk 0:00:22]}  Rxg3 {[%clk 0:00:04]} 36. d6 {[%clk 0:00:00]}  Ke8 {[%clk 0:00:05]} 0-1


[Site "https://www.chess.com"]

[Event "Titled Tuesday Blitz June 13 Early 2023"]
[White "Itkis, Boris"]
[Black "Timerkhanov, Alexander"]
[WhiteFideId "1209167"]
[BlackFideId "24177938"]
[WhiteElo "2219"]
[BlackElo "2278"]
[Result "1/2-1/2"]
[Round "7"]
[TimeControl "180+2"]
[Date "2023.06.13"]
[WhiteClock "0:00:20"]
[BlackClock "0:00:25"]
[Board "60"]

1. c4 {[%clk 0:03:00]}  Nf6 {[%clk 0:02:57]} 2. Nf3 {[%clk 0:03:01]}  c6 {[%clk 0:02:56]} 3. g3 {[%clk 0:03:01]}  d5 {[%clk 0:02:56]} 4. Bg2 {[%clk 0:03:02]}  g6 {[%clk 0:02:55]} 5. b3 {[%clk 0:03:01]}  Bg7 {[%clk 0:02:56]} 6. Bb2 {[%clk 0:03:02]}  O-O {[%clk 0:02:56]} 7. O-O {[%clk 0:03:03]}  a5 {[%clk 0:02:55]} 8. a4 {[%clk 0:03:02]}  Na6 {[%clk 0:02:54]} 9. Na3 {[%clk 0:02:59]}  Nb4 {[%clk 0:02:54]} 10. d4 {[%clk 0:02:58]}  Ne4 {[%clk 0:02:52]} 11. Rc1 {[%clk 0:02:56]}  Bf5 {[%clk 0:02:49]} 12. Nd2 {[%clk 0:02:48]}  Nxd2 {[%clk 0:02:39]} 13. Qxd2 {[%clk 0:02:47]}  Qd7 {[%clk 0:02:34]} 14. cxd5 {[%clk 0:02:46]}  cxd5 {[%clk 0:02:33]} 15. Rc5 {[%clk 0:02:46]}  b6 {[%clk 0:02:26]} 16. Rc3 {[%clk 0:02:40]}  Bh3 {[%clk 0:02:13]} 17. Nb5 {[%clk 0:02:36]}  Bxg2 {[%clk 0:02:09]} 18. Kxg2 {[%clk 0:02:36]}  Rfc8 {[%clk 0:02:08]} 19. Rfc1 {[%clk 0:02:33]}  e6 {[%clk 0:02:02]} 20. Rc7 {[%clk 0:02:29]}  Rxc7 {[%clk 0:01:57]} 21. Rxc7 {[%clk 0:02:29]}  Qd8 {[%clk 0:01:56]} 22. Ba3 {[%clk 0:02:28]}  Bf8 {[%clk 0:01:52]} 23. Bxb4 {[%clk 0:02:25]}  Bxb4 {[%clk 0:01:51]} 24. Qc2 {[%clk 0:02:26]}  h5 {[%clk 0:01:48]} 25. h4 {[%clk 0:02:25]}  Rb8 {[%clk 0:01:42]} 26. e3 {[%clk 0:02:24]}  Qf6 {[%clk 0:01:33]} 27. f4 {[%clk 0:02:06]}  Qd8 {[%clk 0:01:27]} 28. Kf3 {[%clk 0:02:06]}  Bf8 {[%clk 0:01:23]} 29. Na7 {[%clk 0:01:58]}  Bd6 {[%clk 0:01:18]} 30. Rc8 {[%clk 0:01:44]}  Rxc8 {[%clk 0:01:17]} 31. Qxc8 {[%clk 0:01:45]}  Qxc8 {[%clk 0:01:16]} 32. Nxc8 {[%clk 0:01:46]}  Bc7 {[%clk 0:01:15]} 33. Na7 {[%clk 0:01:46]}  Kf8 {[%clk 0:01:14]} 34. Nb5 {[%clk 0:01:47]}  Bb8 {[%clk 0:01:08]} 35. e4 {[%clk 0:01:46]}  dxe4+ {[%clk 0:01:07]} 36. Kxe4 {[%clk 0:01:47]}  Ke7 {[%clk 0:01:07]} 37. d5 {[%clk 0:01:40]}  f6 {[%clk 0:00:58]} 38. Nd4 {[%clk 0:01:05]}  exd5+ {[%clk 0:00:52]} 39. Kxd5 {[%clk 0:01:04]}  Kd7 {[%clk 0:00:51]} 40. Nb5 {[%clk 0:00:46]}  g5 {[%clk 0:00:44]} 41. fxg5 {[%clk 0:00:33]}  fxg5 {[%clk 0:00:45]} 42. hxg5 {[%clk 0:00:34]}  Bxg3 {[%clk 0:00:44]} 43. Ke4 {[%clk 0:00:34]}  Ke6 {[%clk 0:00:34]} 44. Nd4+ {[%clk 0:00:32]}  Kf7 {[%clk 0:00:32]} 45. Kf5 {[%clk 0:00:30]}  h4 {[%clk 0:00:31]} 46. g6+ {[%clk 0:00:29]}  Kg8 {[%clk 0:00:29]} 47. Kg4 {[%clk 0:00:23]}  Kg7 {[%clk 0:00:24]} 48. Nf5+ {[%clk 0:00:15]}  Kxg6 {[%clk 0:00:24]} 49. Nxg3 {[%clk 0:00:14]}  hxg3 {[%clk 0:00:24]} 50. Kxg3 {[%clk 0:00:15]}  Kf5 {[%clk 0:00:23]} 51. Kf3 {[%clk 0:00:15]}  Ke5 {[%clk 0:00:24]} 52. Ke3 {[%clk 0:00:16]}  Kd5 {[%clk 0:00:24]} 53. Kd3 {[%clk 0:00:16]}  Kc5 {[%clk 0:00:24]} 54. Kc3 {[%clk 0:00:17]}  b5 {[%clk 0:00:24]} 55. axb5 {[%clk 0:00:18]}  Kxb5 {[%clk 0:00:24]} 56. Kc2 {[%clk 0:00:18]}  Kb4 {[%clk 0:00:24]} 57. Kb2 {[%clk 0:00:19]}  a4 {[%clk 0:00:24]} 58. bxa4 {[%clk 0:00:20]}  Kxa4 {[%clk 0:00:25]} 1/2-1/2


[Site "https://www.chess.com"]

[Event "Titled Tuesday Blitz June 13 Early 2023"]
[White "Garrido, Denis"]
[Black "Molina, Roberto Junio Brito"]
[WhiteFideId "601217"]
[BlackFideId "2109450"]
[WhiteElo "2362"]
[BlackElo "2376"]
[Result "0-1"]
[Round "7"]
[TimeControl "180+2"]
[Date "2023.06.13"]
[WhiteClock "0:00:11"]
[BlackClock "0:00:49"]
[Board "62"]

1. e4 {[%clk 0:03:00]}  c6 {[%clk 0:03:00]} 2. d4 {[%clk 0:03:00]}  d5 {[%clk 0:03:00]} 3. e5 {[%clk 0:03:01]}  Bf5 {[%clk 0:03:00]} 4. h4 {[%clk 0:03:00]}  Qb6 {[%clk 0:03:00]} 5. Nc3 {[%clk 0:02:55]}  h6 {[%clk 0:02:59]} 6. a3 {[%clk 0:02:39]}  e6 {[%clk 0:02:58]} 7. Be3 {[%clk 0:02:36]}  Qxb2 {[%clk 0:02:49]} 8. Nge2 {[%clk 0:01:56]}  Bxc2 {[%clk 0:02:45]} 9. Qc1 {[%clk 0:01:55]}  Qxc1+ {[%clk 0:02:44]} 10. Rxc1 {[%clk 0:01:56]}  Bd3 {[%clk 0:02:30]} 11. Nf4 {[%clk 0:01:51]}  Bxf1 {[%clk 0:02:26]} 12. Kxf1 {[%clk 0:01:51]}  Nd7 {[%clk 0:02:17]} 13. Rb1 {[%clk 0:01:49]}  O-O-O {[%clk 0:02:11]} 14. a4 {[%clk 0:01:45]}  Nb6 {[%clk 0:02:11]} 15. a5 {[%clk 0:01:40]}  Nc4 {[%clk 0:02:10]} 16. a6 {[%clk 0:01:40]}  b6 {[%clk 0:02:01]} 17. Ke2 {[%clk 0:01:38]}  Kc7 {[%clk 0:01:56]} 18. Rhc1 {[%clk 0:01:37]}  Ne7 {[%clk 0:01:54]} 19. g4 {[%clk 0:01:29]}  g6 {[%clk 0:01:49]} 20. h5 {[%clk 0:01:07]}  g5 {[%clk 0:01:49]} 21. Nd3 {[%clk 0:01:04]}  Rg8 {[%clk 0:01:39]} 22. f3 {[%clk 0:01:02]}  Nc8 {[%clk 0:01:34]} 23. Ne4 {[%clk 0:00:45]}  Ba3 {[%clk 0:01:07]} 24. Nf6 {[%clk 0:00:32]}  Bxc1 {[%clk 0:01:06]} 25. Bxc1 {[%clk 0:00:27]}  Rh8 {[%clk 0:00:53]} 26. f4 {[%clk 0:00:27]}  gxf4 {[%clk 0:00:54]} 27. Bxf4 {[%clk 0:00:26]}  Ne7 {[%clk 0:00:50]} 28. g5 {[%clk 0:00:17]}  hxg5 {[%clk 0:00:48]} 29. Bxg5 {[%clk 0:00:11]}  Nf5 {[%clk 0:00:49]} 0-1


[Site "https://www.chess.com"]